bitfinex-derivatives/quotes_SOLF0:USTF0_20260126
["timestamp","ask_amount","ask_price","bid_price","bid_amount"]
[1769451592404,0.05827704,124.42,124.37,70.54641008]
[1769451594707,0.05827704,124.42,124.34,70.54641008]
[1769451594910,7.2412,124.41,124.34,70.54641008]
[1769451595610,0.06016058,124.39,124.34,70.54641008]
[1769451600226,0.06016058,124.39,124.31,70.54641008]
[1769451600722,7.2434,124.37,124.34,0.05788885]
[1769451601223,0.05238499,124.36,124.34,0.05788885]
[1769451602924,112.6234,124.43,124.34,70.60429893]
[1769451603120,320.9,124.42,124.34,70.60429893]
[1769451603321,320.9,124.42,124.34,70.54641008]
[1769451603522,7.2411,124.41,124.34,70.54641008]
[1769451604224,0.05690532,124.39,124.34,70.54641008]
[1769451604424,0.05690532,124.39,124.34,77.79131008]
[1769451605021,0.05690532,124.39,124.34,70.54641008]
[1769451605716,0.05690532,124.39,124.32,70.54641008]
[1769451605922,0.05690532,124.39,124.35,0.05556586]
[1769451606122,7.2439,124.36,124.32,70.54641008]
[1769451606821,112.6584,124.39,124.3,70.54641008]
[1769451606822,112.6763,124.37,124.3,70.54641008]
[1769451607022,112.6933,124.35,124.27,70.54641008]
[1769451607324,7.2462,124.32,124.27,70.54641008]
[1769451607514,112.7262,124.32,124.21,70.54641008]
[1769451607712,320.94,124.32,124.22,76.58963126]
[1769451608017,7.2454,124.34,124.27,70.51765272]
[1769451608926,7.2454,124.34,124.27,77.76675272]
[1769451609428,0.05478947,124.32,124.27,77.76675272]
[1769451609927,0.05478947,124.32,124.27,70.51765272]
[1769451610619,0.05478947,124.32,124.24,70.51765272]
[1769451611114,7.2477,124.3,124.24,70.51765272]
[1769451611315,314.14,124.35,124.24,76.5608739]
[1769451611521,314.14,124.35,124.27,70.49052551]
[1769451611717,7.2456,124.34,124.27,70.49052551]
[1769451613028,7.2458,124.33,124.29,0.05419341]
[1769451613628,328.2449,124.35,124.29,0.05419341]
[1769451614120,7.2449,124.35,124.29,70.54471892]
[1769451614317,238.3,124.36,124.29,70.54471892]
[1769451614725,238.3,124.36,124.29,70.49052551]
[1769451615230,238.3,124.36,124.31,0.06006708]
[1769451615426,112.6468,124.41,124.31,70.55059259]
[1769451615626,433.7068,124.41,124.31,70.55059259]
[1769451615829,433.7068,124.41,124.31,70.49052551]
[1769451617133,7.2426,124.39,124.31,77.73722551]
[1769451618327,7.2427,124.38,124.31,77.73722551]
[1769451619332,7.2433,124.37,124.31,70.49052551]
[1769451620033,7.2425,124.39,124.31,70.49052551]
[1769451620528,7.2427,124.38,124.31,70.49052551]
[1769451621736,112.6581,124.39,124.31,70.49052551]
[1769451622030,112.6749,124.37,124.28,70.49052551]
[1769451622232,7.2451,124.34,124.28,70.49052551]
[1769451622829,112.6688,124.38,124.28,70.49052551]
[1769451623134,7.2444,124.36,124.29,77.73842551]
[1769451623636,7.2431,124.38,124.3,76.53374669]
[1769451624832,321.06,124.4,124.32,70.49052551]
[1769451626139,321.06,124.4,124.35,0.05808202]
[1769451627033,7.2428,124.38,124.32,70.49052551]
[1769451628228,7.242,124.4,124.32,77.73662551]
[1769451628539,7.242,124.4,124.34,70.49052551]
[1769451628740,7.242,124.4,124.35,0.05412182]
[1769451629640,7.242,124.4,124.35,70.54464733]
[1769451630138,0.0531014,124.39,124.35,70.54464733]
[1769451630538,7.241,124.41,124.35,70.54464733]
[1769451632534,112.6302,124.42,124.35,70.54464733]
[1769451632940,112.6302,124.42,124.35,70.49052551]
[1769451633339,112.6302,124.42,124.37,0.05844172]
[1769451634643,112.6302,124.42,124.35,70.49052551]
[1769451634842,0.06149242,124.41,124.35,70.49052551]
[1769451635039,7.242,124.4,124.35,70.49052551]
[1769451635237,0.06149242,124.41,124.35,70.49052551]
[1769451635238,321.08149242,124.41,124.35,70.49052551]
[1769451635938,321.08149242,124.41,124.37,0.05890517]
[1769451636644,0.06149242,124.41,124.37,0.05890517]
[1769451636943,0.06149242,124.41,124.37,70.54943068]
[1769451637934,7.2398,124.44,124.37,70.54943068]
[1769451638341,7.2398,124.44,124.37,70.49052551]
[1769451638740,7.2399,124.43,124.37,70.49052551]
[1769451639247,7.2399,124.43,124.39,0.05298923]
[1769451642549,7.2393,124.44,124.39,70.51276853]
[1769451642753,112.5744,124.49,124.39,70.51276853]
[1769451642951,320.98,124.48,124.39,70.51276853]
[1769451643249,320.98,124.48,124.39,70.4597793]
[1769451643645,112.5473,124.52,124.41,70.4597793]
[1769451643949,112.5473,124.52,124.41,76.51036444]
[1769451644151,320.96,124.51,124.45,0.05795209]
[1769451645049,7.2363,124.49,124.45,0.05795209]
[1769451645641,7.2369,124.48,124.43,70.4597793]
[1769451647153,7.2369,124.48,124.44,0.0533029]
[1769451649353,7.2362,124.5,124.44,0.0533029]
[1769451650155,7.2366,124.49,124.44,0.0533029]
[1769451650855,328.1955,124.51,124.44,70.5130822]
[1769451651056,320.86,124.52,124.44,70.5130822]
[1769451651451,320.86,124.52,124.44,70.4597793]
[1769451651849,320.86,124.52,124.47,0.0525887]
[1769451652457,7.2345,124.53,124.47,0.0525887]
[1769451652663,320.86,124.52,124.47,0.0525887]
[1769451653869,7.2355,124.51,124.47,0.0525887]
[1769451654566,320.86,124.52,124.47,0.0525887]
[1769451654567,7.2358,124.5,124.47,0.0525887]
[1769451654766,112.5666,124.49,124.39,70.4597793]
[1769451654964,112.60934605,124.5,124.39,70.4597793]
[1769451655168,7.2369,124.48,124.41,70.4597793]
[1769451656972,7.2369,124.48,124.41,77.7006793]
[1769451659870,112.585,124.47,124.41,58.1245793]
[1769451660073,112.585,124.47,124.35,6.05058514]
[1769451660074,0.06039231,124.46,124.35,6.05058514]
[1769451660272,320.8,124.45,124.35,6.05058514]
[1769451660780,112.6208,124.43,124.31,222.04060869]
[1769451661283,7.2417,124.4,124.34,7.2449]
[1769451661473,0.05925054,124.38,124.31,334.76560869]
[1769451661675,112.612,124.44,124.31,334.76560869]
[1769451661876,112.612,124.44,124.36,0.05613803]
[1769451662180,112.612,124.44,124.36,64.34478933]
[1769451662378,112.612,124.44,124.36,64.2886513]
[1769451662875,7.241,124.41,124.39,0.05774349]
[1769451663180,7.241,124.41,124.36,64.2886513]
[1769451663381,7.29920796,124.41,124.36,64.2886513]
[1769451663577,0.05820796,124.41,124.36,64.2886513]
[1769451669189,0.05820796,124.41,124.34,64.2886513]
[1769451669382,0.05820796,124.41,124.37,0.05776042]
[1769451669884,7.2422,124.39,124.34,64.2886513]
[1769451670186,0.05820796,124.41,124.34,64.2886513]
[1769451670383,112.633,124.42,124.34,64.2886513]
[1769451670686,7.2416,124.4,124.34,64.2886513]
[1769451671385,0.0555796,124.38,124.34,64.2886513]
[1769451674087,6.05058514,124.45,124.34,64.2886513]
[1769451674390,433.495,124.46,124.36,64.2608615]
[1769451674590,7.2398,124.44,124.36,71.5046615]
[1769451675589,0.05707707,124.41,124.36,71.5046615]
[1769451676691,0.05707707,124.41,124.36,64.2608615]
[1769451676889,0.05707707,124.41,124.34,64.2608615]
[1769451678088,0.05707707,124.41,124.31,6.05058514]
[1769451678089,135.96866357,124.48,124.4,41.2672458]
[1769451678293,23.38746357,124.48,124.4,41.2672458]
[1769451678689,7.2381,124.46,124.4,41.2672458]
[1769451679489,7.2381,124.46,124.42,0.05654971]
[1769451679691,23.91339671,124.46,124.34,118.74808514]
[1769451679881,0.05703075,124.44,124.34,118.74808514]
[1769451680087,7.2394,124.44,124.37,7.2432]
[1769451680289,34.48098139,124.44,124.34,118.74808514]
[1769451680989,0.05340697,124.4,124.34,118.74808514]
[1769451681592,0.05340697,124.4,124.35,41.79220206]
[1769451681995,0.05340697,124.4,124.36,49.03550206]
[1769451684093,27.24158139,124.44,124.37,49.03540206]
[1769451684397,27.24158139,124.44,124.37,49.08823254]
[1769451685297,34.48078139,124.44,124.37,49.08823254]
[1769451685801,7.2385,124.46,124.39,41.79220206]
[1769451686590,35.36720492,124.46,124.41,0.05420622]
[1769451688299,7.2372,124.48,124.41,41.84640828]
[1769451688802,7.2372,124.48,124.41,41.79220206]
[1769451689197,7.2372,124.48,124.43,0.05349791]
[1769451691205,35.59061719,124.5,124.43,41.84569997]
[1769451691597,28.35451719,124.5,124.43,41.84569997]
[1769451692203,28.68328103,124.52,124.43,41.84569997]
[1769451692403,28.68328103,124.52,124.45,41.79220206]
[1769451693102,28.68328103,124.52,124.47,0.05529249]
[1769451693303,35.91788103,124.52,124.47,0.05529249]
[1769451697814,28.68328103,124.52,124.47,0.05529249]
[1769451698513,28.68328103,124.52,124.45,41.79220206]
[1769451698707,0.06152471,124.51,124.45,41.79220206]
[1769451699709,0.06152471,124.51,124.46,2.36715531]
[1769451703113,0.06152471,124.51,124.45,44.15935737]
[1769451704115,7.29682471,124.51,124.45,44.15935737]
[1769451704917,29.98762517,124.49,124.43,44.15935737]
[1769451705105,29.98762517,124.49,124.43,41.79220206]
[1769451705613,0.05960286,124.47,124.43,41.79220206]
[1769451705814,0.05960286,124.47,124.43,44.15935737]
[1769451707111,0.05960286,124.47,124.42,2.36715531]
[1769451707414,0.05960286,124.47,124.41,44.15935737]
[1769451707610,7.29720286,124.47,124.41,44.15935737]
[1769451707814,29.8370244,124.47,124.41,41.79220206]
[1769451708412,7.2383,124.46,124.41,41.79220206]
[1769451709618,7.2383,124.46,124.42,2.36715531]
[1769451710019,7.2383,124.46,124.41,44.15935737]
[1769451711218,112.5073,124.56,124.46,44.76337424]
[1769451711418,143.89141617,124.57,124.5,2.36715531]
[1769451711720,29.02836086,124.56,124.5,2.36715531]
[1769451712109,7.2334,124.55,124.5,2.36715531]
[1769451712514,7.2334,124.55,124.49,44.76337424]
[1769451712719,7.2334,124.55,124.49,47.13052955]
[1769451712915,0.05498701,124.54,124.49,47.13052955]
[1769451716423,30.76320441,124.54,124.47,2.36715531]
[1769451716629,30.76320441,124.54,124.46,54.36802955]
[1769451716923,30.7082174,124.54,124.46,54.36802955]
[1769451717323,0.0614569,124.51,124.47,2.36715531]
[1769451719824,7.2336,124.54,124.48,47.13052955]
[1769451720026,320.72,124.55,124.49,47.13052955]
[1769451720726,327.9529,124.55,124.49,47.13052955]
[1769451721231,327.9529,124.55,124.51,0.05310107]
[1769451721430,355.70674187,124.55,124.51,0.05310107]
[1769451721623,355.70674187,124.55,124.49,44.76337424]
[1769451722830,34.86203577,124.54,124.48,2.36715531]
[1769451723026,34.86203577,124.54,124.47,47.13052955]
[1769451723222,29.99569108,124.54,124.47,47.13052955]
[1769451723425,27.62853577,124.54,124.48,2.36715531]
[1769451724227,27.62853577,124.54,124.47,47.13052955]
[1769451724424,29.74934358,124.52,124.45,47.13052955]
[1769451724626,29.80198754,124.52,124.45,44.76337424]
[1769451724822,29.80198754,124.52,124.45,47.13052955]
[1769451725727,27.43483223,124.52,124.46,2.36715531]
[1769451727030,7.2352,124.51,124.46,2.36715531]
[1769451727625,29.80198754,124.52,124.45,2.36715531]
[1769451727823,29.39088073,124.51,124.44,2.36715531]
[1769451728128,29.39088073,124.51,124.43,47.13052955]
[1769451728334,7.2365,124.49,124.43,47.13052955]
[1769451728524,7.29756985,124.49,124.44,2.36715531]
[1769451728730,7.29756985,124.49,124.44,47.13052955]
[1769451729033,7.29756985,124.49,124.45,2.36715531]
[1769451729232,7.29756985,124.49,124.44,2.36715531]
[1769451729433,7.29756985,124.49,124.43,47.13052955]
[1769451729933,7.29756985,124.49,124.44,2.36715531]
[1769451730129,7.29756985,124.49,124.44,44.76337424]
[1769451730433,0.06106985,124.49,124.44,44.76337424]
[1769451730735,0.06106985,124.49,124.44,47.13052955]
[1769451731332,7.29736985,124.49,124.44,47.13052955]
[1769451731639,7.29736985,124.49,124.43,2.36715531]
[1769451731836,7.29736985,124.49,124.43,47.13052955]
[1769451732135,7.2363,124.49,124.43,47.13052955]
[1769451732537,0.05932503,124.47,124.43,47.13052955]
[1769451734235,7.2356,124.51,124.45,2.36715531]
[1769451735830,7.2356,124.51,124.47,0.05967708]
[1769451736226,7.2361,124.5,124.47,0.05967708]
[1769451737434,7.2363,124.49,124.47,0.05967708]
[1769451737635,0.06184806,124.5,124.45,2.36715531]
[1769451737828,0.06184806,124.5,124.45,47.13052955]
[1769451738034,0.06184806,124.5,124.45,44.76337424]
[1769451738633,7.2365,124.49,124.45,44.76337424]
[1769451740338,7.2365,124.49,124.43,44.02124766]
[1769451740738,32.67356146,124.5,124.43,51.26104766]
[1769451740944,25.43776146,124.5,124.43,51.26104766]
[1769451741145,0.05992518,124.47,124.43,44.02124766]
[1769451741346,0.05992518,124.47,124.43,41.65409235]
[1769451742830,7.29742518,124.47,124.43,41.65409235]
[1769451744943,0.05992518,124.47,124.44,2.36715531]
[1769451745144,25.05418631,124.51,124.45,44.02124766]
[1769451745337,25.05418631,124.51,124.44,0.05976938]
[1769451745338,458.29315489,124.53,124.46,44.02124766]
[1769451746041,7.2357,124.51,124.46,44.02124766]
[1769451746440,7.2357,124.51,124.48,0.05259184]
[1769451746839,0.05967376,124.5,124.46,44.02124766]
[1769451747741,7.29577376,124.5,124.46,41.65409235]
[1769451747929,7.29577376,124.5,124.44,44.02124766]
[1769451749645,7.29577376,124.5,124.44,44.02175489]
[1769451751753,7.29577376,124.5,124.45,44.02175489]
[1769451752746,31.69173126,124.54,124.47,44.02175489]
[1769451753245,34.0593938,124.54,124.47,44.02175489]
[1769451753951,7.2348,124.52,124.49,0.05455777]
[1769451755742,7.2337,124.54,124.49,41.70865012]
[1769451756245,7.2341,124.53,124.49,41.70865012]
[1769451756447,33.78973597,124.55,124.49,41.70865012]
[1769451756839,31.42207343,124.55,124.49,41.70865012]
[1769451758041,7.2335,124.54,124.49,41.70865012]
[1769451758743,7.2352,124.51,124.47,2.36766254]
[1769451758949,33.77610755,124.53,124.47,2.36766254]
[1769451759141,33.71821996,124.53,124.47,2.36766254]
[1769451759938,7.2351,124.52,124.47,2.36766254]
[1769451761244,33.54498623,124.51,124.44,41.65409235]
[1769451761548,35.91264877,124.48,124.42,41.65409235]
[1769451761746,33.54498623,124.46,124.4,2.36766254]
[1769451762044,7.2383,124.46,124.4,2.36766254]
[1769451762249,7.2383,124.46,124.41,44.02175489]
[1769451762450,7.2383,124.46,124.41,41.65409235]
[1769451765650,7.237,124.48,124.43,41.65409235]
[1769451765854,7.237,124.48,124.43,44.02175489]
[1769451770357,7.237,124.48,124.43,41.65409235]
[1769451771857,32.89456216,124.48,124.41,40.80537202]
[1769451772057,32.89456216,124.48,124.42,40.80537202]
[1769451773058,40.13196216,124.48,124.42,40.80537202]
[1769451773256,40.13196216,124.48,124.42,38.43770948]
[1769451773851,35.2622247,124.48,124.42,38.43770948]
[1769451774052,2.36766254,124.47,124.42,38.43770948]
[1769451774652,32.74901709,124.5,124.42,40.80537202]
[1769451774857,355.87667963,124.5,124.42,40.80537202]
[1769451776054,7.2369,124.48,124.42,40.80537202]
[1769451777259,35.02182503,124.49,124.42,38.43770948]
[1769451778253,323.14766254,124.49,124.42,38.43770948]
[1769451779959,7.2377,124.47,124.42,38.43770948]
[1769451780150,355.66373096,124.49,124.42,38.43770948]
[1769451780557,32.47099409,124.52,124.43,2.36766254]
[1769451780756,323.14766254,124.53,124.46,38.43770948]
[1769451780958,355.61865663,124.53,124.46,38.43770948]
[1769451781755,112.5125,124.55,124.48,40.80537202]
[1769451781963,34.79407746,124.54,124.47,2.36766254]
[1769451782149,34.79407746,124.54,124.46,40.80537202]
[1769451782461,0.06181995,124.53,124.46,40.80537202]
[1769451782966,7.2348,124.52,124.46,40.80537202]
[1769451783350,7.2348,124.52,124.48,0.05242234]
[1769451783863,0.05937862,124.5,124.48,0.05242234]
[1769451784554,32.29580629,124.56,124.48,38.49013182]
[1769451784762,465.56800629,124.55,124.48,40.85779436]
[1769451785060,465.56800629,124.55,124.48,40.80537202]
[1769451785261,7.234,124.53,124.48,40.80537202]
[1769451785661,32.29580629,124.55,124.48,40.80537202]
[1769451785861,320.76,124.54,124.48,40.80537202]
[1769451786049,320.76,124.54,124.49,0.05685646]
[1769451786962,327.9934,124.54,124.49,0.05685646]
[1769451787853,327.9934,124.54,124.49,2.424519]
[1769451788261,32.17044249,124.57,124.5,2.36766254]
[1769451788656,32.17044249,124.57,124.5,40.80537202]
[1769451789164,32.17044249,124.57,124.52,0.0589742]
[1769451789466,7.2329,124.55,124.52,0.0589742]
[1769451789760,7.2334,124.54,124.48,40.80537202]
[1769451793063,7.2326,124.56,124.5,40.80537202]
[1769451793264,7.2326,124.56,124.52,2.36766254]
[1769451793468,320.68,124.57,124.52,2.36766254]
[1769451793767,327.9117,124.57,124.52,2.36766254]
[1769451793972,0.05267128,124.56,124.53,0.05428499]
[1769451794468,7.28497128,124.56,124.52,2.36766254]
[1769451795665,7.28497128,124.56,124.5,38.43770948]
[1769451795666,31.84912407,124.56,124.5,38.43770948]
[1769451796569,0.05267128,124.56,124.52,38.43770948]
[1769451796961,0.05267128,124.56,124.51,2.36766254]
[1769451797266,7.2334,124.54,124.48,2.36766254]
[1769451797968,0.05579376,124.52,124.48,2.36766254]
[1769451799066,0.05579376,124.52,124.48,43.13759114]
[1769451799573,38.78022099,124.56,124.5,43.13759114]
[1769451801069,7.2329,124.55,124.5,43.13759114]
[1769451802576,7.2334,124.54,124.5,40.7699286]
[1769451803071,38.32792338,124.59,124.5,40.7699286]
[1769451803271,2.36766254,124.58,124.51,43.13759114]
[1769451804268,40.69558592,124.58,124.51,43.13759114]
[1769451805878,7.2325,124.56,124.51,43.13759114]
[1769451806775,7.2325,124.56,124.51,34.50024368]
[1769451809075,7.2329,124.55,124.51,34.50024368]
[1769451809475,40.69558592,124.58,124.51,34.50024368]
[1769451809680,40.69558592,124.58,124.45,112.5994]
[1769451809681,38.32792338,124.56,124.49,2.36766254]
[1769451809869,38.32792338,124.55,124.47,2.36766254]
[1769451810074,361.29558592,124.54,124.47,2.36766254]
[1769451810674,7.2352,124.51,124.47,2.36766254]
[1769451810975,40.69558592,124.52,124.45,2.36766254]
[1769451811183,2.36766254,124.5,124.42,2.36766254]
[1769451811568,2.36836488,124.5,124.43,40.7699286]
[1769451811870,0.06015534,124.47,124.43,40.7699286]
[1769451812071,0.06015534,124.47,124.45,0.05587436]
[1769451814076,0.06015534,124.47,124.41,40.7699286]
[1769451814077,359.02807872,124.47,124.41,40.7699286]
[1769451814376,359.02807872,124.47,124.39,2.36836488]
[1769451814377,40.69628826,124.45,124.38,2.36836488]
[1769451814570,40.69628826,124.45,124.31,112.726]
[1769451814571,150.95792338,124.42,124.35,43.13829348]
[1769451814777,40.69628826,124.39,124.33,40.7699286]
[1769451815177,0.06159042,124.37,124.33,40.7699286]
[1769451817283,0.06159042,124.37,124.29,40.7699286]
[1769451817582,45.57332338,124.34,124.25,40.7699286]
[1769451817780,471.72992338,124.34,124.25,40.7699286]
[1769451818186,0.05138096,124.31,124.25,40.7699286]
[1769451818576,151.10850434,124.31,124.21,40.7699286]
[1769451818878,45.57562338,124.3,124.21,40.7699286]
[1769451819084,366.37562338,124.3,124.21,40.7699286]
[1769451819583,0.05395318,124.27,124.21,40.7699286]
[1769451820280,328.0677,124.3,124.21,40.7699286]
[1769451821185,7.2477,124.3,124.21,40.7699286]
[1769451821490,0.05198449,124.27,124.21,40.7699286]
[1769451821880,0.05198449,124.27,124.24,0.05207768]
[1769451822388,0.05198449,124.27,124.21,40.7699286]
[1769451823673,0.05198449,124.27,124.18,40.7699286]
[1769451823674,45.62930787,124.27,124.18,40.7699286]
[1769451824089,119.9978,124.29,124.18,40.7699286]
[1769451824285,320.96,124.28,124.18,40.7699286]
[1769451824480,0.05133637,124.24,124.18,40.7699286]
[1769451824681,320.96,124.28,124.18,40.7699286]
[1769451825792,38.32792338,124.29,124.21,40.7699286]
[1769451826096,359.36792338,124.32,124.22,40.7699286]
[1769451826986,321.04,124.32,124.24,40.7699286]
[1769451827187,359.36792338,124.32,124.24,40.7699286]
[1769451827390,472.08942338,124.32,124.24,40.7699286]
[1769451827892,359.36792338,124.32,124.24,40.7699286]
[1769451828092,321.08,124.33,124.24,40.7699286]
[1769451828791,38.32792338,124.35,124.24,40.7699286]
[1769451828792,45.57262338,124.35,124.26,39.3158592]
[1769451832897,0.05596204,124.37,124.31,10.70863298]
[1769451835902,0.05596204,124.37,124.31,17.95523298]
[1769451836104,0.05596204,124.37,124.31,10.70863298]
[1769451836492,0.05596204,124.37,124.33,11.85908007]
[1769451836699,7.2408,124.42,124.34,11.85908007]
[1769451837003,47.34248384,124.42,124.34,11.85908007]
[1769451837904,47.34248384,124.42,124.37,0.05575352]
[1769451838695,7.2411,124.41,124.37,0.05575352]
[1769451840403,47.34068384,124.45,124.37,12.78647008]
[1769451840605,40.10168384,124.45,124.37,12.78647008]
[1769451840905,40.10168384,124.45,124.37,12.73071656]
[1769451841304,40.10168384,124.45,124.4,0.05245472]
[1769451841902,7.2393,124.44,124.4,0.05245472]
[1769451842499,40.10168384,124.45,124.4,0.05245472]
[1769451845107,368.37908384,124.48,124.4,13.61489187]
[1769451845400,368.37908384,124.48,124.4,13.56243715]
[1769451845604,368.37908384,124.48,124.4,20.80393715]
[1769451845804,368.37908384,124.48,124.43,0.0582114]
[1769451846502,361.14168384,124.48,124.43,0.0582114]
[1769451847401,40.10168384,124.48,124.43,0.0582114]
[1769451848199,7.2342,124.53,124.44,39.3158592]
[1769451848405,267.18,124.56,124.45,39.3158592]
[1769451848604,379.6859,124.56,124.45,39.3158592]
[1769451849103,379.6859,124.56,124.49,0.05775701]
[1769451849301,7.2333,124.55,124.49,0.05775701]
[1769451849510,267.18,124.56,124.49,0.05775701]
[1769451850012,7.2332,124.55,124.49,0.05775701]
[1769451850210,40.10168384,124.54,124.49,0.05775701]
[1769451850508,40.10168384,124.54,124.46,7.2378]
[1769451851916,0.06069235,124.51,124.49,0.0529849]
[1769451852117,0.06069235,124.51,124.46,7.2378]
[1769451852505,40.10168384,124.57,124.49,39.3158592]
[1769451853109,47.33378384,124.57,124.49,46.5520592]
[1769451854913,40.10168384,124.57,124.49,39.3158592]
[1769451855111,40.10168384,124.57,124.5,7.2355]
[1769451856316,40.10168384,124.57,124.51,7.2351]
[1769451857316,40.10168384,124.57,124.49,46.5519592]
[1769451858218,40.10168384,124.61,124.52,39.3158592]
[1769451859222,40.10168384,124.61,124.54,44.5866343]
[1769451859718,0.05114178,124.58,124.55,0.06122946]
[1769451862019,0.05114178,124.58,124.52,51.8211343]
[1769451862020,0.05114178,124.58,124.52,44.5866343]
[1769451862717,44.12542864,124.63,124.54,44.5866343]
[1769451862918,44.12542864,124.63,124.54,50.63888094]
[1769451863313,44.12542864,124.63,124.55,51.8194343]
[1769451863616,44.12542864,124.63,124.55,44.5866343]
[1769451864712,51.35362864,124.63,124.55,44.5866343]
[1769451865110,44.12542864,124.63,124.55,44.5866343]
[1769451865415,44.12542864,124.63,124.56,7.2322]
[1769451865719,51.35362864,124.63,124.56,7.2322]
[1769451866415,72.6953834,124.66,124.57,44.5866343]
[1769451866620,72.6953834,124.66,124.57,50.63888094]
[1769451866819,72.6953834,124.66,124.58,44.5866343]
[1769451867217,28.56995476,124.66,124.61,7.2292]
[1769451868213,28.56995476,124.66,124.59,44.5866343]
[1769451868927,28.56995476,124.66,124.6,7.2298]
[1769451869234,14.21465476,124.66,124.62,44.5866343]
[1769451869526,14.21465476,124.66,124.59,44.5866343]
[1769451870715,112.3693,124.71,124.59,44.5866343]
[1769451870920,44.12542864,124.69,124.61,44.5866343]
[1769451872929,7.2259,124.67,124.61,44.5866343]
[1769451874631,44.12542864,124.74,124.64,39.84160062]
[1769451874929,44.12542864,124.74,124.61,112.4533]
[1769451874930,0.06041966,124.65,124.61,39.84160062]
[1769451875328,44.12542864,124.69,124.61,39.84160062]
[1769451875728,0.05309074,124.64,124.59,7.2301]
[1769451876130,0.05309074,124.64,124.58,40.09496124]
[1769451877026,0.05309074,124.64,124.6,7.2299]
[1769451878628,112.3767,124.7,124.63,40.83815399]
[1769451878832,156.49642864,124.71,124.63,40.83815399]
[1769451879031,44.12542864,124.7,124.63,40.83815399]
[1769451879934,7.2247,124.69,124.63,40.83815399]
[1769451881631,44.12542864,124.7,124.61,7.2293]
[1769451881831,44.12542864,124.69,124.6,41.55484763]
[1769451882326,7.226,124.67,124.6,48.78474763]
[1769451886330,7.2256,124.68,124.61,7.2289]
[1769451886536,51.35102864,124.68,124.61,7.2289]
[1769451886928,44.12542864,124.73,124.61,42.69808679]
[1769451887234,44.12542864,124.73,124.65,42.69808679]
[1769451888137,51.34842864,124.72,124.65,42.69808679]
[1769451889228,51.34842864,124.72,124.62,112.4425]
[1769451889229,53.69798661,124.71,124.62,43.29980421]
[1769451889741,53.69798661,124.71,124.64,7.2275]
[1769451893243,7.2242,124.7,124.64,7.2275]
[1769451893640,7.2242,124.7,124.63,7.2282]
[1769451894039,7.2242,124.7,124.63,51.57170366]
[1769451895636,7.2219,124.74,124.67,51.970028]
[1769451895842,46.47428661,124.75,124.67,44.744328]
[1769451896245,53.69548661,124.75,124.68,7.2251]
[1769451896646,0.05447829,124.72,124.68,7.2251]
[1769451897449,0.05447829,124.72,124.67,44.744328]
[1769451899153,0.05447829,124.72,124.69,7.2242]
[1769451902046,320.22,124.77,124.69,7.2242]
[1769451902047,366.69428661,124.77,124.69,44.80546462]
[1769451902445,46.47428661,124.76,124.69,44.74929922]
[1769451903446,46.47428661,124.76,124.71,0.0577357]
[1769451903746,53.69508661,124.76,124.71,0.0577357]
[1769451905647,7.2213,124.75,124.71,0.0577357]
[1769451905851,53.69558661,124.75,124.71,0.0577357]
[1769451906159,53.75158443,124.75,124.69,7.2247]
[1769451907442,0.05599782,124.75,124.69,51.97399922]
[1769451909156,0.05599782,124.75,124.7,7.2239]
[1769451909653,112.2759,124.82,124.7,7.2239]
[1769451909654,46.47428661,124.81,124.75,7.221]
[1769451910256,53.69208661,124.81,124.73,44.74929922]
[1769451910550,366.61428661,124.8,124.73,44.74929922]
[1769451911060,366.61428661,124.8,124.75,0.05110419]
[1769451911454,7.219,124.79,124.75,0.05110419]
[1769451911656,46.47428661,124.79,124.72,7.2225]
[1769451911855,46.52768706,124.79,124.72,7.2225]
[1769451912050,0.05340045,124.79,124.71,157.11299922]
[1769451912251,0.05340045,124.79,124.72,44.74929922]
[1769451912446,46.47428661,124.81,124.72,44.74929922]
[1769451912652,366.57428661,124.81,124.74,7.2218]
[1769451912953,0.05771389,124.78,124.74,7.2218]
[1769451916256,46.47428661,124.85,124.78,51.96829922]
[1769451916456,46.47428661,124.85,124.78,44.74929922]
[1769451916956,46.47428661,124.85,124.78,51.96879922]
[1769451917756,46.47428661,124.85,124.8,0.05918418]
[1769451918960,7.2161,124.84,124.8,0.05918418]
[1769451919161,327.28903682,124.84,124.78,44.74929922]
[1769451920356,320.07293682,124.84,124.78,44.74929922]
[1769451920554,320.05293682,124.84,124.78,51.96869922]
[1769451921153,0.05293682,124.84,124.8,49.08898879]
[1769451921357,51.21150808,124.88,124.8,49.08898879]
[1769451922048,51.21150808,124.88,124.78,112.3002]
[1769451922049,57.23578849,124.88,124.78,49.08898879]
[1769451922449,51.21150808,124.85,124.78,56.30838879]
[1769451923059,0.05334289,124.83,124.78,56.30838879]
[1769451923267,0.05334289,124.83,124.78,49.08898879]
[1769451924370,0.05334289,124.83,124.79,0.05168847]